{"text_format":"1","workbook":"xlsx","n_sheets":2,"sheets":["Лист для печати","Лист для ввода"],"not_rendered":{"charts":0,"images":1,"macros":1,"external_links":0,"defined_names":2,"comments":0,"pivot_tables":0},"unopened":[],"bounds":{"document_bytes":16777216,"sheet_cells":100000,"rows_first":2000,"rows_last":500,"rows_between":2000,"halvings":0,"cell_chars":16384,"cell_head_chars":4096},"cells_cut":0,"cells_raw":0,"read":"whole","date_system":"1900"}

{"sheet":"Лист для печати","index":0,"n_rows":101,"n_cols":14,"rows_kept":101,"cut":false,"hidden":false,"merged":[[14,13,15,13],[8,0,8,12],[9,0,9,12],[10,0,10,12],[0,2,0,12],[14,4,14,6],[14,12,15,12],[1,10,1,12],[14,7,14,9],[14,11,15,11],[3,0,3,12],[4,0,4,12],[5,0,5,12],[14,10,15,10],[14,0,15,0],[14,1,14,3],[11,0,11,12],[12,0,12,12],[6,0,6,12],[7,0,7,12]]}
[null,null,"Включить содержимое.\nКнопку нажимать только после того, как \"Лист для ввода\" полностью заполнен.\nВ конце данного листа вставить данные для подписи."]
[null,null,null,null,null,null,null,null,null,null,"Ежеквартально, до 20 числа месяца, следующего за отчетным кварталом"]
[null,null,null,null,null,null,null,null,null,null,"на эл. адрес: monitor@krasnodar.ru"]
[{"$f":"'Лист для ввода'!A4:M4","v":"ОТЧЕТ "}]
[{"$f":"'Лист для ввода'!A5:N5","v":"об объемах финансирования местных бюджетов \nв рамках реализации государственной программы Краснодарского края"}]
[{"$f":"'Лист для ввода'!A6:N6","v":"\"Развитие сельского хозяйства и регулирование рынков сельскохозяйственной продукции, сырья и продовольствия\""}]
[{"$f":"'Лист для ввода'!A7:N7","v":"(наименование государственной программы)"}]
[{"$f":"'Лист для ввода'!A8:N8","v":"\"Обеспечение эпизоотического, ветеринарно-санитарного благополучия в Краснодарском крае и развитие государственной ветеринарной службы Краснодарского края\""}]
[{"$f":"'Лист для ввода'!A9:N9","v":"(наименование подпрограммы государственной программы)"}]
[{"$f":"'Лист для ввода'!A10:N10","v":"Субвенции на осуществление государственных полномочий по предупреждению и ликвидации болезней животных, их лечению, отлову и содержанию безнадзорных животных, защите населения от болезней, общих для человека и животных в части регулирования численности безнадзорных животных на территории муниципальных образований Краснодарского края"}]
[{"$f":"'Лист для ввода'!A11:N11","v":"(наименование межбюджетного трансферта)"}]
[{"$f":"'Лист для ввода'!A12:N12","v":"1 кватал 2018 года"}]
[{"$f":"'Лист для ввода'!A13:N13","v":"(за I квартал, первое полугодие, 9 месяцев, год)"}]
[null,null,null,null,null,null,null,null,null,null,null,null,"тыс.рублей"]
["Наименование муниципального образования – получателя межбюджетного трансферта","Предусмотренный объем финансирования, тыс. рублей",null,null,"Профинансировано в отчетном\nпериоде, тыс. рублей",null,null,"Освоено в отчетном периоде, тыс. рублей",null,null,"Дата заключения соглашения (дополнительного соглашения) с муниципальным образованием (дд.мм.гггг)","Заключено муниципальных контрактов на отчетную дату, тыс. рублей","Причины неполного (отсутствия) финансирования","Причины неосвоения"]
[null,"федеральный бюджет","краевой бюджет","местный бюджет","федеральный бюджет","краевой бюджет","местный бюджет","федеральный бюджет","краевой бюджет","местный бюджет"]
[1,2,3,4,5,6,7,8,9,10,11,12,13,14]
["ВСЕГО\nпредусмотрено уточненной бюджетной росписью",0,13217.300000000001,"Х","Х","Х","Х","Х","Х","Х","Х","Х","Х","Х"]
["Нераспределенный резерв",null,null,"Х","Х","Х","Х","Х","Х","Х","Х","Х","Х","Х"]
["Всего утверждено распределение",0,13217.300000000001,0,0,0,0,0,0,0,"Х",0,"Х","Х"]
["город-курорт Анапа ",null,836,null,null,null,null,null,null,null,"22.03.2018"]
["город Армавир ",null,243.8]
["город-курорт Геленджик ",null,192.2]
["город Горячий Ключ ",null,381.8]
["город Краснодар ",null,2949.6]
["город Новороссийск ",null,172.4]
["город-курорт Сочи ",null,3241,null,null,null,null,null,null,null,"22.03.2018"]
["Абинский район,\nвсего район и поселения",0,7,0,0,0,0,0,0,0,"30.03.2018",0]
["Абинский район ",null,7]
["Апшеронский район,\nвсего район и поселения",0,49.6,0,0,0,0,0,0,0,"22.03.2018",0]
["Апшеронский район",null,49.6]
["Белоглинский район,\nвсего район и поселения ",0,17.399999999999999,0,0,0,0,0,0,0,"22.03.2018",0]
["Белоглинский район",null,17.399999999999999]
["Белореченский район,\nвсего район и поселения",0,130.5,0,0,0,0,0,0,0,"22.03.2018",0]
["Белореченский район",null,130.5]
["Брюховецкий район,\nвсего район и поселения",0,6.7,0,0,0,0,0,0,0,"22.03.218",0]
["Брюховецкий район",null,6.7]
["Выселковский район,\nвсего район и поселения",0,16.100000000000001,0,0,0,0,0,0,0,"22.03.2018",0]
["Выселковский район",null,16.100000000000001]
["Гулькевичский район,\nвсего район и поселения",0,168.3,null,0,0,0,0,0,0,"23.03.2018",0]
["Гулькевичский район",null,168.3]
["Динской район,\nвсего район и поселения",0,337.6,null,0,0,0,0,0,0,null,0]
["Динской район",null,337.6]
["Ейский район,\nвсего район и поселения",0,295.5,0,0,0,0,0,0,0,"30.03.2018",0]
["Ейский район",null,295.5]
["Кавказский район,\nвсего район и поселения",0,264.8,0,0,0,0,0,0,0,null,0]
["Кавказский район",null,264.8]
["Калининский район,\nвсего район и поселения",0,7.1,0,0,0,0,0,0,0,null,0]
["Калининский район",null,7.1]
["Каневской район,\nвсего район и поселения",0,42.4,0,0,0,0,0,0,0,"22.03.2018",0]
["Каневской район",null,42.4]
["Кореновский район,\nвсего район и поселения",0,337.6,0,0,0,0,0,0,0,null,0]
["Кореновский район",null,337.6]
["Красноармейский район,\nвсего район и поселения",0,105.7,0,0,0,0,0,0,0,"30.03.2018",0]
["Красноармейский район",null,105.7]
["Крыловский район,\nвсего район и поселения",0,64.5,0,0,0,0,0,0,0,null,0]
["Крыловский район",null,64.5]
["Крымский район,\nвсего район и поселения",0,75,0,0,0,0,0,0,0,null,0]
["Крымский район",null,75]
["Курганинский район,\nвсего район и поселения",0,49,0,0,0,0,0,0,0,"22.03.2018",0]
["Курганинский район",null,49]
["Кущевский район,\nвсего район и поселения",0,45.6,0,0,0,0,0,0,0,null,0]
["Кущевский район",null,45.6]
["Лабинский район,\nвсего район и поселения",0,20.100000000000001,0,0,0,0,0,0,0,null,0]
["Лабинский район",null,20.100000000000001]
["Ленинградский район,\nвсего район и поселения",0,94.3,0,0,0,0,0,0,0,"22.03.2018",0]
["Ленинградский район",null,94.3]
["Мостовский район,\nвсего район и поселения",0,18,0,0,0,0,0,0,0,"28.03.2018",0]
["Мостовский район",null,18]
["Новокубанский район,\nвсего район и поселения",0,174.2,0,0,0,0,0,0,0,null,0]
["Новокубанский район",null,174.2]
["Новопокровский район,\nвсего район и поселения",0,13.4,0,0,0,0,0,0,0,null,0]
["Новопокровский район",null,13.4]
["Отрадненский район,\nвсего район и поселения",0,10.5,0,0,0,0,0,0,0,null,0]
["Отрадненский район",null,10.5]
["Павловский район,\nвсего район и поселения",0,46.2,0,0,0,0,0,0,0,null,0]
["Павловский район",null,46.2]
["Приморско-Ахтарский район,\nвсего район и поселения",0,99.1,0,0,0,0,0,0,0,null,0]
["Приморско-Ахтарский район",null,99.1]
["Северский район,\nвсего район и поселения",0,89.4,0,0,0,0,0,0,0,"22.03.2018",0]
["Северский район",null,89.4]
["Славянский район,\nвсего район и поселения",0,423.4,0,0,0,0,0,0,0,null,0]
["Славянский район",null,423.4]
["Староминский район,\nвсего район и поселения",0,124,0,0,0,0,0,0,0,null,0]
["Староминский район",null,124]
["Тбилисский район,\nвсего район и поселения",0,14.6,0,0,0,0,0,0,0,"22.03.2018",0]
["Тбилисский район",null,14.6]
["Темрюкский район,\nвсего район и поселения",0,235.8,0,0,0,0,0,0,0,null,0]
["Темрюкский район",null,235.8]
["Тимашевский район,\nвсего район и поселения",0,221.1,0,0,0,0,0,0,0,"22.03.2018",0]
["Тимашевский район",null,221.1]
["Тихорецкий район,\nвсего район и поселения",0,128.4,0,0,0,0,0,0,0,"22.03.2018",0]
["Тихорецкий район",null,128.4]
["Туапсинский район,\nвсего район и поселения",0,1134.8,0,0,0,0,0,0,0,"30.03.2018",0]
["Туапсинский район",null,1134.8]
["Успенский район,\nвсего район и поселения",0,138.19999999999999,0,0,0,0,0,0,0,null,0]
["Успенский район",null,138.19999999999999]
["Усть-Лабинский район,\nвсего район и поселения",0,170,0,0,0,0,0,0,0,null,0]
["Усть-Лабинский район",null,170]
["Щербиновский район,\nвсего район и поселения",0,24.6,0,0,0,0,0,0,0,null,0]
["Щербиновский район",null,24.6]

{"sheet":"Лист для ввода","index":1,"n_rows":494,"n_cols":14,"rows_kept":494,"cut":false,"hidden":false,"merged":[[10,0,10,13],[11,0,11,13],[12,0,12,13],[0,7,0,9],[0,10,0,13],[3,0,3,13],[4,0,4,13],[5,0,5,13],[6,0,6,13],[7,0,7,13],[8,0,8,13],[9,0,9,13],[485,0,485,13],[486,0,486,13],[489,0,489,13],[491,0,491,2],[14,10,15,10],[14,12,15,12],[14,13,15,13],[484,0,484,13],[14,0,15,0],[14,1,14,3],[14,4,14,6],[14,7,14,9],[14,11,15,11],[487,0,487,13],[488,0,488,13]]}
[null,null,null,null,null,null,null,null,null,null,"Ежеквартально, до 20 числа месяца, следующего за отчетным кварталом"]
[null,null,null,null,null,null,null,null,null,null,"на эл. адрес: monitor@krasnodar.ru"]
[]
["ОТЧЕТ "]
["об объемах финансирования местных бюджетов \nв рамках реализации государственной программы Краснодарского края"]
["\"Развитие сельского хозяйства и регулирование рынков сельскохозяйственной продукции, сырья и продовольствия\""]
["(наименование государственной программы)"]
["\"Обеспечение эпизоотического, ветеринарно-санитарного благополучия в Краснодарском крае и развитие государственной ветеринарной службы Краснодарского края\""]
["(наименование подпрограммы государственной программы)"]
["Субвенции на осуществление государственных полномочий по предупреждению и ликвидации болезней животных, их лечению, отлову и содержанию безнадзорных животных, защите населения от болезней, общих для человека и животных в части регулирования численности безнадзорных животных на территории муниципальных образований Краснодарского края"]
["(наименование межбюджетного трансферта)"]
["1 кватал 2018 года"]
["(за I квартал, первое полугодие, 9 месяцев, год)"]
[null,null,null,null,null,null,null,null,null,null,null,null,null,"тыс.рублей"]
["Наименование муниципального образования – получателя межбюджетного трансферта","Предусмотренный объем финансирования, тыс. рублей",null,null,"Профинансировано в отчетном\nпериоде, тыс. рублей",null,null,"Освоено в отчетном периоде, тыс. рублей",null,null,"Дата заключения соглашения (дополнительного соглашения) с муниципальным образованием (дд.мм.гггг)1)","Заключено муниципальных контрактов на отчетную дату, тыс. рублей2)","Причины неполного (отсутствия) финансирования3)","Причины неосвоения4)"]
[null,"федеральный бюджет","краевой бюджет","местный бюджет 5)","федеральный бюджет","краевой бюджет","местный бюджет","федеральный бюджет","краевой бюджет","местный бюджет"]
[1,2,3,4,5,6,7,8,9,10,11,12,13,14]
["ВСЕГО\nпредусмотрено уточненной бюджетной росписью",{"$f":"B19+B20","v":0},{"$f":"C20","v":13217.300000000001},"Х","Х","Х","Х","Х","Х","Х","Х","Х","Х","Х"]
["Нераспределенный резерв",null,null,"Х","Х","Х","Х","Х","Х","Х","Х","Х","Х","Х"]
["Всего утверждено распределение",{"$f":"B21+B22+B23+B24+B25+B26+B27+B28+B38+B52+B58+B71+B81+B93+B110+B122+B135+B146+B156+B167+B179+B191+B199+B212+B224+B238+B253+B267+B283+B294+B304+B320+B333+B344+B358+B375+B382+B392+B406+B418+B433+B445+B457+B474","v":0},{"$f":"C21+C22+C23+C24+C25+C26+C27+C28+C38+C52+C58+C71+C81+C93+C110+C122+C135+C146+C156+C167+C179+C191+C199+C212+C224+C238+C253+C267+C283+C294+C304+C320+C333+C344+C358+C375+C382+C392+C406+C418+C433+C445+C457+C474","v":13217.300000000001},0,0,0,0,0,0,0,"Х",0,"Х","Х"]
["город-курорт Анапа ",null,836,null,null,null,null,null,null,null,"22.03.2018"]
["город Армавир ",null,243.8]
["город-курорт Геленджик ",null,192.2]
["город Горячий Ключ ",null,381.8]
["город Краснодар ",null,2949.6]
["город Новороссийск ",null,172.4]
["город-курорт Сочи ",null,3241,null,null,null,null,null,null,null,"22.03.2018"]
["Абинский район,\nвсего район и поселения",{"$f":"SUM(B29:B37)","v":0},7,{"$f":"SUM(D29:D37)","v":0},0,0,0,0,0,0,"30.03.2018",{"$f":"SUM(L29:L37)","v":0}]
["Абинский район ",null,7]
[" Абинское г/п"]
[" Ахтырское г/п"]
[" Варнавинское с/п"]
[" Мингрельское с/п"]
[" Ольгинское с/п"]
[" Светлогорское с/п"]
[" Федоровское с/п"]
[" Холмское с/п"]
["Апшеронский район,\nвсего район и поселения",{"$f":"SUM(B39:B51)","v":0},49.6,{"$f":"SUM(D39:D51)","v":0},0,0,0,0,0,0,"22.03.2018",{"$f":"SUM(L39:L51)","v":0}]
["Апшеронский район",null,49.6]
[" Апшеронское г/п"]
[" Кабардинское с/п"]
[" Кубанское с/п"]
[" Куринское с/п"]
[" Мезмайское с/п"]
[" Нефтегорское г/п"]
[" Нижегородское г/п"]
[" Новополянское с/п"]
[" Отдаленное с/п"]
[" Тверское с/п"]
[" Хадыженское г/п"]
[" Черниговское с/п"]
["Белоглинский район,\nвсего район и поселения ",{"$f":"SUM(B53:B57)","v":0},17.399999999999999,{"$f":"SUM(D53:D57)","v":0},0,0,0,0,0,0,"22.03.2018",{"$f":"SUM(L53:L57)","v":0}]
["Белоглинский район",null,17.399999999999999]
[" Белоглинское с/п"]
[" Новопавловское с/п"]
[" Успенское с/п"]
[" Центральное с/п"]
["Белореченский район,\nвсего район и поселения",{"$f":"SUM(B59:B70)","v":0},130.5,{"$f":"SUM(D59:D70)","v":0},0,0,0,0,0,0,"22.03.2018",{"$f":"SUM(L59:L70)","v":0}]
["Белореченский район",null,130.5]
[" Белореченское г/п"]
[" Бжедуховское с/п"]
[" Великовечненское с/п"]
[" Дружненское с/п"]
[" Первомайское с/п"]
[" Пшехское с/п"]
[" Родниковское с/п"]
[" Рязанское с/п"]
[" Школьненское с/п"]
[" Черниговское с/п"]
[" Южненское с/п"]
["Брюховецкий район,\nвсего район и поселения",{"$f":"SUM(B72:B80)","v":0},6.7,{"$f":"SUM(D72:D80)","v":0},0,0,0,0,0,0,"22.03.218",{"$f":"SUM(L72:L80)","v":0}]
["Брюховецкий район",null,6.7]
[" Батуринское с/п"]
[" Большебейсугское с/п"]
[" Брюховецкое с/п"]
[" Новоджерелиевское с/п"]
[" Новосельское с/п"]
[" Переясловское с/п"]
[" Свободненское с/п"]
[" Чепигинское с/п"]
["Выселковский район,\nвсего район и поселения",{"$f":"SUM(B82:B92)","v":0},16.100000000000001,{"$f":"SUM(D82:D92)","v":0},0,0,0,0,0,0,"22.03.2018",{"$f":"SUM(L82:L92)","v":0}]
["Выселковский район",null,16.100000000000001]
[" Бейсугское с/п"]
[" Бейсужекское с/п"]
[" Березанское с/п"]
[" Бузиновское с/п"]
[" Выселковское с/п"]
[" Газырское с/п"]
[" Ирклиевское с/п"]
[" Крупское с/п"]
[" Новобейсугское с/п"]
[" Новомалороссийское с/п"]
["Гулькевичский район,\nвсего район и поселения",{"$f":"SUM(B94:B109)","v":0},168.3,null,{"$f":"SUM(E94:E109)","v":0},0,0,0,0,0,"23.03.2018",{"$f":"SUM(L94:L109)","v":0}]
["Гулькевичский район",null,168.3]
[" Гулькевичское г/п"]
[" Гирейское г/п"]
[" Венцы-Заря с/п"]
[" Комсомольское с/п"]
[" Красносельское г/п"]
[" Кубань с/п"]
[" Николенское с/п"]
[" Новоукраинское с/п"]
[" Отрадно-Кубанское с/п"]
[" Отрадно-Ольгинское с/п"]
[" Пушкинское с/п"]
[" Скобелевское с/п"]
[" Соколовское с/п"]
[" Союз 4-х хуторов с/п"]
[" Тысячное с/п"]
["Динской район,\nвсего район и поселения",{"$f":"SUM(B111:B121)","v":0},337.6,null,{"$f":"SUM(E111:E121)","v":0},0,0,0,0,0,null,{"$f":"SUM(L111:L121)","v":0}]
["Динской район",null,337.6]
[" Васюринское с/п"]
[" Динское с/п"]
[" Красносельское с/п"]
[" Мичуринское с/п"]
[" Нововеличковское с/п"]
[" Новотитаровское с/п"]
[" Первореченское с/п"]
[" Пластуновское с/п"]
[" Старомышастовское с/п"]
[" Южно-Кубанское с/п"]
["Ейский район,\nвсего район и поселения",{"$f":"SUM(B123:B134)","v":0},295.5,{"$f":"SUM(D123:D134)","v":0},0,0,0,0,0,0,"30.03.2018",{"$f":"SUM(L123:L134)","v":0}]
["Ейский район",null,295.5]
[" Александровское с/п"]
[" Должанское с/п"]
[" Ейское г/п"]
[" Ейское с/п"]
[" Камышеватское с/п"]
[" Копанское с/п"]
[" Красноармейское с/п"]
[" Кухаривское с/п"]
[" Моревское с/п"]
[" Трудовое с/п"]
[" Ясенское с/п"]
["Кавказский район,\nвсего район и поселения",{"$f":"SUM(B136:B145)","v":0},264.8,{"$f":"SUM(D136:D145)","v":0},0,0,0,0,0,0,null,{"$f":"SUM(L136:L145)","v":0}]
["Кавказский район",null,264.8]
[" Дмитриевское с/п"]
[" им. М. Горького с/п"]
[" Кавказское с/п"]
[" Казанское с/п"]
[" Кропоткинское г/п"]
[" Лосевское с/п"]
[" Мирское с/п"]
[" Привольное с/п"]
[" Темижбекское с/п"]
["Калининский район,\nвсего район и поселения",{"$f":"SUM(B147:B155)","v":0},7.1,{"$f":"SUM(D147:D155)","v":0},0,0,0,0,0,0,null,{"$f":"SUM(L147:L155)","v":0}]
["Калининский район",null,7.1]
[" Бойкопонурское с/п"]
[" Гривенское с/п"]
[" Гришковское с/п"]
[" Джумайловское с/п"]
[" Калининское с/п"]
[" Куйбышевское с/п"]
[" Новониколаевское с/п"]
[" Старовеличковское с/п"]
["Каневской район,\nвсего район и поселения",{"$f":"SUM(B157:B166)","v":0},42.4,{"$f":"SUM(D157:D166)","v":0},0,0,0,0,0,0,"22.03.2018",{"$f":"SUM(L157:L166)","v":0}]
["Каневской район",null,42.4]
[" Каневское с/п"]
[" Красногвардейское с/п"]
[" Кубанскостепное с/п"]
[" Новодерявянковское с/п"]
[" Новоминское с/п"]
[" Привольненское с/п"]
[" Придорожное с/п"]
[" Стародеревянковское с/п"]
[" Челбасское с/п"]
["Кореновский район,\nвсего район и поселения",{"$f":"SUM(B168:B178)","v":0},337.6,{"$f":"SUM(D168:D178)","v":0},0,0,0,0,0,0,null,{"$f":"SUM(L168:L178)","v":0}]
["Кореновский район",null,337.6]
[" Братковское с/п"]
[" Бураковское с/п"]
[" Дядьковское с/п"]
[" Журавское с/п"]
[" Кореновское г/п"]
[" Новоберезанское с/п"]
[" Платнировское с/п"]
[" Пролетарское с/п"]
[" Раздольненское с/п"]
[" Сергиевское с/п"]
["Красноармейский район,\nвсего район и поселения",{"$f":"SUM(B180:B190)","v":0},105.7,{"$f":"SUM(D180:D190)","v":0},0,0,0,0,0,0,"30.03.2018",{"$f":"SUM(L180:L190)","v":0}]
["Красноармейский район",null,105.7]
[" Ивановское с/п"]
[" Марьянское с/п"]
[" Новомышастовское с/п"]
[" Октябрьское с/п"]
[" Полтавское с/п"]
[" Протичкинское с/п"]
[" Староджерелиевское с/п"]
[" Старонижнестеблиевское с/п"]
[" Трудобеликовское с/п"]
[" Чебургольское с/п"]
["Крыловский район,\nвсего район и поселения",{"$f":"SUM(B192:B198)","v":0},64.5,{"$f":"SUM(D192:D198)","v":0},0,0,0,0,0,0,null,{"$f":"SUM(L192:L198)","v":0}]
["Крыловский район",null,64.5]
[" Крыловское с/п"]
[" Кугоейское с/п"]
[" Новопашковское с/п"]
[" Новосергиевское с/п"]
[" Октябрьское с/п"]
[" Шевченковское с/п"]
["Крымский район,\nвсего район и поселения",{"$f":"SUM(B200:B211)","v":0},75,{"$f":"SUM(D200:D211)","v":0},0,0,0,0,0,0,null,{"$f":"SUM(L200:L211)","v":0}]
["Крымский район",null,75]
[" Адагумское с/п"]
[" Варениковское с/п"]
[" Кеслеровское с/п"]
[" Киевское с/п"]
[" Крымское г/п"]
[" Мерчанское с/п"]
[" Молдаванское с/п"]
[" Нижнебаканское с/п"]
[" Пригородное с/п"]
[" Троицкое с/п"]
[" Южное с/п"]
["Курганинский район,\nвсего район и поселения",{"$f":"SUM(B213:B223)","v":0},49,{"$f":"SUM(D213:D223)","v":0},0,0,0,0,0,0,"22.03.2018",{"$f":"SUM(L213:L223)","v":0}]
["Курганинский район",null,49]
[" Безводное с/п"]
[" Воздвиженское с/п"]
[" Константиновское с/п"]
[" Курганинское г/п"]
[" Михайловское с/п"]
[" Новоалексеевское с/п"]
[" Октябрьское с/п"]
[" Петропавловское с/п"]
[" Родниковское с/п"]
[" Темиргоевское с/п"]
["Кущевский район,\nвсего район и поселения",{"$f":"SUM(B225:B237)","v":0},45.6,{"$f":"SUM(D225:D237)","v":0},0,0,0,0,0,0,null,{"$f":"SUM(L225:L237)","v":0}]
["Кущевский район",null,45.6]
[" Глебовское с/п"]
[" Ильинское с/п"]
[" Кисляковское с/п"]
[" Краснополянское с/п"]
[" Красносельское с/п"]
[" Кущевское с/п"]
[" Новомихайловское с/п"]
[" Первомайское с/п"]
[" Полтавченское с/п"]
[" Раздольненское с/п"]
[" Среднечубуркское с/п"]
[" Шкуринское с/п"]
["Лабинский район,\nвсего район и поселения",{"$f":"SUM(B239:B252)","v":0},20.100000000000001,{"$f":"SUM(D239:D252)","v":0},0,0,0,0,0,0,null,{"$f":"SUM(L239:L252)","v":0}]
["Лабинский район",null,20.100000000000001]
[" Ахметовское с/п"]
[" Владимирское с/п"]
[" Вознесенское с/п"]
[" Зассовское с/п"]
[" Каладжинское с/п"]
[" Лабинское г/п"]
[" Лучевое с/п"]
[" Отважненское с/п"]
[" Первосинюхинское с/п"]
[" Сладковское с/п"]
[" Упорненское с/п"]
[" Харьковское с/п"]
[" Чамлыкское с/п"]
["Ленинградский район,\nвсего район и поселения",{"$f":"SUM(B254:B266)","v":0},94.3,{"$f":"SUM(D254:D266)","v":0},0,0,0,0,0,0,"22.03.2018",{"$f":"SUM(L254:L266)","v":0}]
["Ленинградский район",null,94.3]
[" Белохуторское с/п"]
[" Западное с/п"]
[" Коржовское с/п"]
[" Крыловское с/п"]
[" Куликовское с/п"]
[" Восточное с/п"]
[" Ленинградское с/п"]
[" Новоплатнировское с/п"]
[" Новоуманское с/п"]
[" Образцовое с/п"]
[" Первомайское с/п"]
[" Уманское с/п"]
["Мостовский район,\nвсего район и поселения",{"$f":"SUM(B268:B282)","v":0},18,{"$f":"SUM(D268:D282)","v":0},0,0,0,0,0,0,"28.03.2018",{"$f":"SUM(L268:L282)","v":0}]
["Мостовский район",null,18]
[" Андрюковское с/п"]
[" Баговское с/п"]
[" Беноковское с/п"]
[" Бесленеевское с/п"]
[" Губское с/п"]
[" Костромское с/п"]
[" Краснокутское с/п"]
[" Махошевское с/п"]
[" Мостовское г/п"]
[" Переправненское с/п"]
[" Псебайское г/п"]
[" Унароковское с/п"]
[" Шедокское с/п"]
[" Ярославское с/п"]
["Новокубанский район,\nвсего район и поселения",{"$f":"SUM(B284:B293)","v":0},174.2,{"$f":"SUM(D284:D293)","v":0},0,0,0,0,0,0,null,{"$f":"SUM(L284:L293)","v":0}]
["Новокубанский район",null,174.2]
[" Бесскорбненское с/п"]
[" Верхнекубанское с/п"]
[" Ковалевское с/п"]
[" Ляпинское с/п"]
[" Новокубанское г/п"]
[" Новосельское с/п"]
[" Прикубанское с/п"]
[" Прочноокопское с/п"]
[" Советское с/п"]
["Новопокровский район,\nвсего район и поселения",{"$f":"SUM(B295:B303)","v":0},13.4,{"$f":"SUM(D295:D303)","v":0},0,0,0,0,0,0,null,{"$f":"SUM(L295:L303)","v":0}]
["Новопокровский район",null,13.4]
[" Горькобалковское с/п"]
[" Ильинское с/п"]
[" Калниболотское с/п"]
[" Кубанское с/п"]
[" Незамаевское с/п"]
[" Новоивановское с/п"]
[" Новопокровское с/п"]
[" Покровское с/п"]
["Отрадненский район,\nвсего район и поселения",{"$f":"SUM(B305:B319)","v":0},10.5,{"$f":"SUM(D305:D319)","v":0},0,0,0,0,0,0,null,{"$f":"SUM(L305:L319)","v":0}]
["Отрадненский район",null,10.5]
[" Бесстрашненское с/п"]
[" Благодарненское с/п"]
[" Красногвардейское с/п"]
[" Малотенгинское с/п"]
[" Маякское с/п"]
[" Надежненское с/п"]
[" Отрадненское с/п"]
[" Передовское с/п"]
[" Подгорненское с/п"]
[" Подгорносинюхинское с/п"]
[" Попутненское с/п"]
[" Рудьевское с/п"]
[" Спокойненское с/п"]
[" Удобненское с/п"]
["Павловский район,\nвсего район и поселения",{"$f":"SUM(B321:B332)","v":0},46.2,{"$f":"SUM(D321:D332)","v":0},0,0,0,0,0,0,null,{"$f":"SUM(L321:L332)","v":0}]
["Павловский район",null,46.2]
[" Атаманское с/п"]
[" Веселовское с/п"]
[" Незамаевское с/п"]
[" Новоулешковское с/п"]
[" Новопетровское с/п"]
[" Новопластуновское с/п"]
[" Павловское с/п"]
[" Северное с/п"]
[" Среднечелбасское"]
[" Староулешковское с/п"]
["Упорненское с/п"]
["Приморско-Ахтарский район,\nвсего район и поселения",{"$f":"SUM(B334:B343)","v":0},99.1,{"$f":"SUM(D334:D343)","v":0},0,0,0,0,0,0,null,{"$f":"SUM(L334:L343)","v":0}]
["Приморско-Ахтарский район",null,99.1]
[" Ахтарское с/п"]
[" Бородинское с/п"]
[" Бриньковское с/п"]
[" Новопокровское с/п"]
[" Ольгинское с/п"]
[" Приазовское с/п"]
["Приморско-Ахтарское г/п"]
[" Свободное с/п"]
[" Степное с/п"]
["Северский район,\nвсего район и поселения",{"$f":"SUM(B345:B357)","v":0},89.4,{"$f":"SUM(D345:D357)","v":0},0,0,0,0,0,0,"22.03.2018",{"$f":"SUM(L345:L357)","v":0}]
["Северский район",null,89.4]
[" Азовское с/п"]
[" Афипское г/п"]
[" Григорьевское с/п"]
[" Ильское г/п"]
[" Калужское с/п"]
[" Львовское с/п"]
[" Михайловское с/п"]
[" Новодмитриевское с/п"]
[" Северское с/п"]
[" Смоленское с/п"]
[" Черноморское г/п"]
[" Шабановское с/п"]
["Славянский район,\nвсего район и поселения",{"$f":"SUM(B359:B374)","v":0},423.4,{"$f":"SUM(D359:D374)","v":0},0,0,0,0,0,0,null,{"$f":"SUM(L359:L374)","v":0}]
["Славянский район",null,423.4]
[" Анастасиевское с/п   "]
[" Ачуевское с/п"]
[" Голубая Нива с/п"]
[" Забойское с/п "]
[" Кировское с/п"]
[" Коржевское с/п "]
[" Маевское с/п  "]
[" Петровское с/п"]
[" Прибрежное с/п "]
[" Прикубанское с/п"]
[" Протокское с/п "]
[" Рисовое с/п "]
[" Славянское г/п"]
[" Целинное с/п"]
[" Черноерковское с/п"]
["Староминский район,\nвсего район и поселения",{"$f":"SUM(B376:B381)","v":0},124,{"$f":"SUM(D376:D381)","v":0},0,0,0,0,0,0,null,{"$f":"SUM(L376:L381)","v":0}]
["Староминский район",null,124]
[" Канеловское с/п"]
[" Рассветовское с/п"]
[" Куйбышевское с/п"]
[" Новоясенское с/п"]
[" Староминское с/п"]
["Тбилисский район,\nвсего район и поселения",{"$f":"SUM(B383:B391)","v":0},14.6,{"$f":"SUM(D383:D391)","v":0},0,0,0,0,0,0,"22.03.2018",{"$f":"SUM(L383:L391)","v":0}]
["Тбилисский район",null,14.6]
[" Алексее-Тенгинское с/п"]
[" Ванновское с/п"]
[" Геймановское с/п"]
[" Ловлинское с/п"]
[" Марьинское с/п"]
[" Нововладимировское с/п"]
[" Песчаное с/п"]
[" Тбилисское с/п"]
["Темрюкский район,\nвсего район и поселения",{"$f":"SUM(B393:B405)","v":0},235.8,{"$f":"SUM(D393:D405)","v":0},0,0,0,0,0,0,null,{"$f":"SUM(L393:L405)","v":0}]
["Темрюкский район",null,235.8]
[" Ахтанизовское с/п"]
[" Вышестиблиевское с/п"]
[" Голубицкое с/п"]
[" Запорожское с/п"]
[" Краснострельское с/п"]
[" Курчанское с/п"]
[" Новотаманское с/п"]
[" Сенное с/п"]
[" Старотитаровское с/п"]
[" Таманское с/п"]
[" Темрюкское г/п"]
[" Фонталовское с/п"]
["Тимашевский район,\nвсего район и поселения",{"$f":"SUM(B407:B417)","v":0},221.1,{"$f":"SUM(D407:D417)","v":0},0,0,0,0,0,0,"22.03.2018",{"$f":"SUM(L407:L417)","v":0}]
["Тимашевский район",null,221.1]
["Дербентское с/п"]
["Днепровское с/п"]
[" с/п Кубанец"]
[" Медведовское с/п"]
[" Незаймановское с/п"]
[" Новокорсунское с/п"]
[" Новоленинское с/п"]
[" Поселковое с/п"]
[" Роговское с/п"]
["Тимашевское г/п"]
["Тихорецкий район,\nвсего район и поселения",{"$f":"SUM(B419:B432)","v":0},128.4,{"$f":"SUM(D419:D432)","v":0},0,0,0,0,0,0,"22.03.2018",{"$f":"SUM(L419:L432)","v":0}]
["Тихорецкий район",null,128.4]
["Алексеевское с/п"]
[" Архангельское с/п"]
[" Братское с/п"]
[" Еремизино-Борисовское с/п"]
[" Крутое с/п"]
[" Новорождественское с/п"]
[" Отрадненское с/п"]
[" Парковское с/п"]
[" Терновское с/п"]
[" Тихорецкое г/п"]
[" Фастовецкое с/п"]
[" Хоперское с/п"]
[" Юго-Северное с/п"]
["Туапсинский район,\nвсего район и поселения",{"$f":"SUM(B434:B444)","v":0},1134.8,{"$f":"SUM(D434:D444)","v":0},0,0,0,0,0,0,"30.03.2018",{"$f":"SUM(L434:L444)","v":0}]
["Туапсинский район",null,1134.8]
[" Вельяминовское с/п"]
[" Георгиевское с/п"]
[" Джубгское г/п"]
[" Небугское с/п"]
[" Новомихайловское г/п"]
[" Октябрьское с/п"]
[" Тенгинское с/п"]
[" Туапсинское г/п"]
[" Шаумянское с/п"]
[" Шепсинское с/п"]
["Успенский район,\nвсего район и поселения",{"$f":"SUM(B446:B456)","v":0},138.19999999999999,{"$f":"SUM(D446:D456)","v":0},0,0,0,0,0,0,null,{"$f":"SUM(L446:L456)","v":0}]
["Успенский район",null,138.19999999999999]
[" Веселовское с/п"]
[" Вольненское с/п"]
[" Коноковское с/п"]
[" Кургоковское с/п"]
[" Маламинское с/п"]
[" Николаевское с/п"]
[" Трехсельское с/п"]
[" Убеженское с/п"]
[" Урупское с/п"]
[" Успенское с/п"]
["Усть-Лабинский район,\nвсего район и поселения",{"$f":"SUM(B458:B473)","v":0},170,{"$f":"SUM(D458:D473)","v":0},0,0,0,0,0,0,null,{"$f":"SUM(L458:L473)","v":0}]
["Усть-Лабинский район",null,170]
[" Александровское с/п"]
[" Братское с/п"]
[" Вимовское с/п"]
[" Воронежское с/п"]
[" Восточное с/п"]
[" Двубратское с/п"]
[" Железное с/п"]
[" Кирпильское с/п"]
[" Ладожское с/п"]
[" Ленинское с/п"]
[" Некрасовское с/п"]
[" Новолабинское с/п"]
[" Суворовское с/п"]
[" Тенгинское с/п"]
[" Усть-Лабинское г/п "]
["Щербиновский район,\nвсего район и поселения",{"$f":"SUM(B475:B483)","v":0},24.6,{"$f":"SUM(D475:D483)","v":0},0,0,0,0,0,0,null,{"$f":"SUM(L475:L483)","v":0}]
["Щербиновский район",null,24.6]
[" Глафировское с/п"]
[" Ейскоукрепленское с/п"]
[" Екатериновское с/п"]
[" Николаевское с/п"]
[" Новощербиновское с/п"]
[" Старощербиновское с/п"]
[" Шабельское с/п"]
[" Щербиновское с/п"]
[]
["1) Указываются реквизиты соглашений (дополнительных соглашений) о предоставлении субсидии из краевого бюджета, заключенным с муниципальным образованием в отчетном периоде (далее – соглашение)."]
["2) Заполняется в случае если муниципальным образованием при освоении межбюджетного транферта используются конкурентные способы определения поставщиков (подрядчиков, исполнителей) или осуществляются закупки у единственного поставщика (подрядчика, исполнителя)."]
["3) Заполняется в случае, если значения графы «Профинансировано в отчетном периоде» (графы 5-7) меньше «Объем финансирования на текущий год, предусмотренный уточненной бюджетной роспи-сью» (графы 2-4)."]
["4) Заполняется в случае если, значения графы «Освоено в отчетном периоде» (графы 8-10) меньше «Профинансировано в отчетном периоде» (графы 5-7)."]
["5) Объем местного бюджета указывается в соответствии с соглашением."]
["Примечание. В форме не допускается исключать и добавлять графы и скрывать строки."]
[]
["Руководитель органа исполнительной власти, структурного подразделения администрации Краснодарского края ",null,null,null,null,"___________________",null,null,null,null,"______________________________"]
[null,null,null,null,null,"(подпись)",null,null,null,null,null,"(Ф.И.О.)"]
["Исполнитель, тел."]